bitfinex/quotes_SOLUSD_20250522
["timestamp","ask_amount","ask_price","bid_price","bid_amount"]
[1747914932105,18.64964886,178.6,178.54,26.0]
[1747914932300,4.17704639,178.61,178.53,26.0]
[1747914932612,18.64964886,178.6,178.53,26.0]
[1747914932918,18.64964886,178.6,178.54,72.3]
[1747914933296,18.64964886,178.58,178.53,26.0]
[1747914933516,18.64964886,178.58,178.43,18.64964886]
[1747914933517,18.64964886,178.58,178.54,72.3]
[1747914934286,18.64964886,178.58,178.5,26.0]
[1747914934521,18.64964886,178.58,178.51,72.3]
[1747914934723,32.68630956,178.58,178.5,26.0]
[1747914934899,32.68630956,178.58,178.52,72.3]
[1747914935098,4.17155886,178.57,178.52,72.3]
[1747914935308,18.64964886,178.55,178.53,33.58]
[1747914937608,24.25032144,178.55,178.53,33.58]
[1747914937798,32.68630956,178.6,178.53,59.58]
[1747914938005,5.59910414,178.6,178.53,59.58]
[1747914938200,5.59910414,178.6,178.54,5.60098577]
[1747914938407,24.24847178,178.61,178.56,26.0]
[1747914938604,18.64964886,178.63,178.57,59.58]
[1747914938811,18.64964886,178.63,178.58,38.96]
[1747914939129,5.59785042,178.64,178.58,38.96]
[1747914939300,5.59760913,178.65,178.58,38.96]
[1747914939501,18.64964886,178.64,178.58,38.96]
[1747914939832,5.59728486,178.66,178.61,26.0]
[1747914940036,18.64964886,178.65,178.62,33.58]
[1747914940238,5.59728486,178.66,178.62,33.58]
[1747914940541,18.64964886,178.65,178.62,33.58]
[1747914941327,18.64964886,178.67,178.63,72.52]
[1747914941508,5.59722377,178.66,178.63,72.52]
[1747914941829,19.63388447,178.66,178.59,26.0]
[1747914942127,14.0366607,178.64,178.6,72.52]
[1747914942329,5.59722377,178.66,178.6,72.52]
[1747914942330,14.0366607,178.65,178.6,72.52]
[1747914942517,14.0366607,178.65,178.61,72.52]
[1747914943519,5.59785042,178.64,178.61,72.52]
[1747914944007,5.59785042,178.64,178.62,72.52]
[1747914944412,19.63451112,178.64,178.63,33.58]
[1747914944827,5.59785042,178.64,178.63,33.58]
[1747914946007,5.59659726,178.68,178.63,33.58]
[1747914946215,5.59659726,178.68,178.64,26.0]
[1747914946428,5.59629523,178.69,178.64,26.0]
[1747914946808,19.63231846,178.71,178.66,26.0]
[1747914947009,5.59471858,178.74,178.67,33.58]
[1747914947209,14.0366607,178.72,178.68,38.94]
[1747914947635,19.63201095,178.72,178.68,38.94]
[1747914947808,19.63201095,178.72,178.66,26.0]
[1747914948018,144.8372,178.77,178.66,26.0]
[1747914948019,5.59500216,178.74,178.7,26.0]
[1747914948237,5.59445905,178.75,178.71,33.56]
[1747914948429,19.63111975,178.75,178.71,33.56]
[1747914948832,5.59445905,178.75,178.71,33.56]
[1747914949013,19.63111975,178.75,178.72,72.5]
[1747914949214,14.0366607,178.76,178.72,72.5]
[1747914949526,14.0366607,178.75,178.72,72.5]
[1747914950236,13.98410238,178.78,178.69,26.0]
[1747914950237,14.0366607,178.76,178.69,26.0]
[1747914950440,18.64964886,178.74,178.69,26.0]
[1747914950625,14.0366607,178.7,178.62,8.9838686]
[1747914950824,18.64964886,178.7,178.63,72.5]
[1747914951017,14.0366607,178.66,178.63,38.94]
[1747914951216,5.59722377,178.66,178.64,33.56]
[1747914951931,5.59722377,178.66,178.64,26.0]
[1747914952131,5.59722377,178.66,178.65,33.56]
[1747914952439,38.28353333,178.66,178.57,8.37539938]
[1747914952739,14.0366607,178.65,178.62,38.94]
[1747914952938,14.0366607,178.64,178.63,33.56]
[1747914953241,19.63451112,178.64,178.63,33.56]
[1747914954552,38.28415998,178.64,178.63,33.56]
[1747914955534,38.28415998,178.64,178.59,26.0]
[1747914955730,5.59847721,178.62,178.6,72.48]
[1747914955964,19.63513791,178.62,178.61,33.56]
[1747914957258,5.59847721,178.62,178.61,33.56]
[1747914957556,19.63513791,178.62,178.61,33.56]
[1747914957741,14.0366607,178.62,178.61,33.56]
[1747914958550,38.28447336,178.63,178.61,33.56]
[1747914958749,14.0366607,178.62,178.61,33.56]
[1747914959248,14.0366607,178.62,178.57,26.0]
[1747914959440,14.0366607,178.62,178.58,72.5]
[1747914959641,5.59904814,178.61,178.58,72.5]
[1747914959841,5.59904814,178.61,178.59,33.56]
[1747914962365,5.59785042,178.64,178.59,33.56]
[1747914962669,13.99111429,178.69,178.62,26.0]
[1747914962964,14.0366607,178.68,178.63,72.5]
[1747914963151,14.0366607,178.67,178.64,33.56]
[1747914963459,18.64964886,178.67,178.64,33.56]
[1747914963762,14.0366607,178.65,178.63,26.0]
[1747914963969,14.0366607,178.64,178.63,33.56]
[1747914964171,14.0366607,178.65,178.63,33.56]
[1747914964370,14.0366607,178.66,178.63,33.56]
[1747914964742,14.0366607,178.65,178.63,33.56]
[1747914965861,14.0366607,178.68,178.63,33.56]
[1747914966442,18.64964886,178.71,178.63,33.56]
[1747914966849,14.0366607,178.68,178.63,33.56]
[1747914967263,14.0366607,178.7,178.63,33.56]
[1747914967854,14.0366607,178.7,178.62,26.0]
[1747914968057,14.0366607,178.67,178.63,72.6]
[1747914968370,14.0366607,178.67,178.64,33.56]
[1747914968577,32.68630956,178.68,178.64,33.56]
[1747914968953,18.64964886,178.71,178.64,33.56]
[1747914969569,14.0366607,178.69,178.64,33.56]
[1747914970258,18.64964886,178.71,178.64,33.56]
[1747914970451,14.0366607,178.69,178.64,33.56]
[1747914971047,18.64964886,178.73,178.64,59.56]
[1747914971260,14.0366607,178.7,178.64,59.56]
[1747914971553,14.0366607,178.69,178.64,59.56]
[1747914971952,14.0366607,178.68,178.64,26.0]
[1747914972149,14.0366607,178.66,178.65,33.56]
[1747914972356,14.0366607,178.67,178.65,33.56]
[1747914972844,18.64964886,178.71,178.64,39.04]
[1747914973150,18.64964886,178.71,178.65,33.56]
[1747914973356,14.0366607,178.67,178.65,33.56]
[1747914974050,14.0366607,178.66,178.65,33.56]
[1747914974252,14.0366607,178.67,178.65,33.56]
[1747914974453,18.64964886,178.71,178.66,33.56]
[1747914974773,14.0366607,178.68,178.66,33.56]
[1747914976072,14.0366607,178.67,178.66,33.56]
[1747914977181,14.0366607,178.67,178.62,26.0]
[1747914977381,18.64964886,178.71,178.63,33.56]
[1747914977571,14.0366607,178.67,178.63,33.56]
[1747914978665,14.0366607,178.66,178.63,33.56]
[1747914979068,18.64964886,178.7,178.63,33.56]
[1747914979281,14.0366607,178.67,178.63,33.56]
[1747914980383,14.0366607,178.64,178.62,26.0]
[1747914980598,14.0366607,178.63,178.56,211.0085]
[1747914980772,18.64964886,178.66,178.6,26.0]
[1747914980773,14.0366607,178.62,178.6,26.0]
[1747914981088,14.0366607,178.61,178.56,211.0085]
[1747914981277,14.0366607,178.61,178.58,39.04]
[1747914981788,14.0366607,178.6,178.59,33.56]
[1747914982372,14.0366607,178.61,178.59,33.56]
[1747914982689,14.0366607,178.6,178.57,3.17826195]
[1747914982882,5.59941766,178.59,178.58,33.56]
[1747914983091,5.59941766,178.59,178.58,36.73826195]
[1747914984086,38.28572722,178.59,178.58,3.17826195]
[1747914984269,42.46271423,178.59,178.58,3.17826195]
[1747914985078,18.64964886,178.58,178.52,7.99454719]
[1747914985473,14.0366607,178.53,178.52,7.99454719]
[1747914985676,32.68630956,178.53,178.52,7.99454719]
[1747914986279,32.68630956,178.53,178.51,33.56]
[1747914986494,14.0366607,178.52,178.51,33.56]
[1747914987090,19.63827396,178.52,178.48,65.04]
[1747914987395,5.60161326,178.52,178.49,33.56]
[1747914987601,19.63827396,178.52,178.49,33.56]
[1747914988085,14.0366607,178.51,178.49,33.56]
[1747914988894,19.63827396,178.52,178.49,33.56]
[1747914990097,5.60161326,178.52,178.49,33.56]
[1747914990499,19.63827396,178.52,178.49,33.56]
[1747914991093,5.60161326,178.52,178.49,33.56]
[1747914991399,19.63827396,178.52,178.49,33.56]
[1747914993900,5.60161326,178.52,178.49,33.56]
[1747914994107,14.0366607,178.51,178.49,33.56]
[1747914995094,5.60161326,178.52,178.49,33.56]
[1747914995298,14.0366607,178.51,178.49,33.56]
[1747914995511,19.63885538,178.51,178.49,33.56]
[1747914995909,5.60219468,178.51,178.49,33.56]
[1747914996107,5.60219468,178.51,178.48,26.0]
[1747914996316,5.60219468,178.51,178.5,33.58]
[1747914997908,38.28782186,178.53,178.5,33.58]
[1747914998111,24.25116116,178.53,178.5,33.58]
[1747914998306,19.637736,178.54,178.5,33.58]
[1747914999709,5.6010753,178.54,178.5,33.58]
[1747915001912,18.64964886,178.55,178.5,33.58]
[1747915002113,19.63731644,178.56,178.5,33.58]
[1747915002814,19.63731644,178.56,178.5,39.18213379]
[1747915002990,18.64964886,178.57,178.53,26.0]
[1747915003192,32.68630956,178.57,178.54,33.58]
[1747915003593,18.64964886,178.57,178.54,33.58]
[1747915003805,19.63701912,178.56,178.54,33.58]
[1747915004407,5.59979275,178.58,178.54,33.58]
[1747915004591,24.2491323,178.59,178.54,33.58]
[1747915004798,14.0366607,178.6,178.54,72.08]
[1747915005103,14.0366607,178.59,178.55,72.08]
[1747915005417,14.0366607,178.59,178.56,72.08]
[1747915005607,38.2443191,178.62,178.56,72.08]
[1747915005799,18.64964886,178.59,178.56,72.08]
[1747915005998,24.24915768,178.59,178.56,72.08]
[1747915006216,18.64964886,178.62,178.56,72.08]
[1747915006422,14.0366607,178.61,178.56,72.08]
[1747915006712,24.24812607,178.62,178.56,72.08]
[1747915006914,38.28478677,178.62,178.56,72.08]
[1747915007090,38.28478677,178.62,178.56,72.15]
[1747915007421,14.0366607,178.61,178.56,72.08]
[1747915007609,14.0366607,178.6,178.56,72.08]
[1747915007923,5.59973121,178.58,178.57,33.58]
[1747915010325,5.59973121,178.58,178.57,33.65]
[1747915010699,18.64964886,178.59,178.57,33.65]
[1747915011005,24.24917539,178.59,178.57,33.65]
[1747915011897,5.59879066,178.61,178.57,33.65]
[1747915012122,24.24901661,178.6,178.57,33.65]
[1747915012322,14.0366607,178.61,178.57,33.65]
[1747915012626,19.63562135,178.61,178.57,33.65]
[1747915013421,14.0366607,178.6,178.57,33.65]
[1747915014623,5.59941766,178.59,178.57,33.65]
[1747915018014,18.64964886,178.6,178.57,33.65]
[1747915019305,24.24895825,178.6,178.57,33.65]
[1747915020410,24.24812607,178.62,178.57,59.65]
[1747915021128,24.24812607,178.62,178.57,59.58]
[1747915022036,18.64964886,178.62,178.57,65.18001294]
[1747915022224,18.64964886,178.62,178.6,26.0]
[1747915022430,18.64964886,178.62,178.61,33.58]
[1747915022621,24.24812607,178.62,178.61,33.58]
[1747915023945,18.64964886,178.61,178.59,72.06]
[1747915024146,14.0366607,178.6,178.59,33.56]
[1747915024316,14.0366607,178.6,178.56,33.56]
[1747915024512,18.64964886,178.61,178.56,33.56]
[1747915024513,14.0366607,178.58,178.56,33.56]
[1747915025114,14.0366607,178.58,178.51,5.60185007]
[1747915025316,14.0366607,178.58,178.5,5.60224089]
[1747915025546,5.59910414,178.6,178.5,5.60224089]
[1747915025722,18.64964886,178.58,178.5,5.60224089]
[1747915026040,14.0366607,178.57,178.49,40.0472]
[1747915026232,14.0366607,178.57,178.49,45.64971908]
[1747915026410,14.0366607,178.57,178.5,33.56]
[1747915027340,19.6367055,178.57,178.49,45.64970383]
[1747915027554,19.6367055,178.57,178.51,33.56]
[1747915028836,14.0366607,178.55,178.51,33.56]
[1747915029045,14.0366607,178.55,178.52,71.54]
[1747915029669,32.68630956,178.56,178.52,71.54]
[1747915030544,5.60067208,178.55,178.52,71.54]
[1747915031269,19.63733278,178.55,178.53,33.58]
[1747915031655,32.68630956,178.54,178.53,33.58]
[1747915032568,38.28729533,178.54,178.53,33.58]
[1747915034576,38.28729533,178.54,178.51,37.98]
[1747915034778,14.0366607,178.52,178.51,37.98]
[1747915034970,14.0366607,178.52,178.51,71.56]
[1747915035367,32.68630956,178.52,178.51,37.98]
[1747915036784,38.28792282,178.52,178.51,37.98]
[1747915036988,24.25126212,178.52,178.51,37.98]
[1747915037184,5.60098577,178.54,178.51,37.98]
[1747915037366,5.60035842,178.56,178.51,37.98]
[1747915038286,14.0366607,178.53,178.46,209.46]
[1747915038493,14.0366607,178.53,178.47,71.56]
[1747915038988,5.60161326,178.52,178.47,71.56]
[1747915039489,5.60161326,178.52,178.48,33.58]
[1747915040189,19.63799534,178.53,178.48,33.58]
[1747915040375,19.6377546,178.54,178.48,33.58]
[1747915041084,14.0366607,178.53,178.48,33.58]
[1747915042691,5.60161326,178.52,178.48,33.58]
[1747915043579,5.60161326,178.52,178.48,59.58]
[1747915043885,18.64964886,178.51,178.48,26.0]
[1747915044079,32.68630956,178.51,178.49,33.58]
[1747915044669,5.60224089,178.5,178.49,33.58]
[1747915047279,24.2516919,178.51,178.49,33.58]
[1747915047485,5.60204304,178.51,178.49,33.58]
[1747915047684,5.60172727,178.52,178.49,33.58]
[1747915048192,5.60135548,178.53,178.49,33.58]
[1747915051819,32.68630956,178.52,178.49,33.58]
[1747915051990,5.60192706,178.51,178.49,33.58]
[1747915056804,18.64964886,178.5,178.47,37.98]
[1747915057118,18.64964886,178.5,178.48,33.58]
[1747915058207,18.64964886,178.5,178.47,37.98]
[1747915058398,5.60255476,178.49,178.48,33.58]
[1747915061001,5.60255476,178.49,178.47,37.98]
[1747915061204,5.60255476,178.49,178.48,33.58]
[1747915061609,24.25220362,178.49,178.48,33.58]
[1747915068827,28.04147835,178.51,178.48,33.58]
[1747915068828,18.64964886,178.51,178.48,33.58]
[1747915070924,5.60224089,178.5,178.48,33.58]
[1747915071919,5.60161326,178.52,178.48,33.58]
[1747915072926,24.25100205,178.53,178.48,33.58]
[1747915073126,5.60135319,178.53,178.48,33.58]
[1747915073329,5.60135319,178.53,178.48,39.18283294]
[1747915074237,18.64964886,178.55,178.48,39.18283294]
[1747915074819,4.18588475,178.54,178.48,39.18283294]
[1747915075714,5.60098577,178.54,178.48,39.18283294]
[1747915076631,5.60073365,178.55,178.49,26.0]
[1747915077208,5.60073365,178.55,178.51,26.0]
[1747915077424,5.60073365,178.55,178.52,33.58]
[1747915081918,38.28704321,178.55,178.53,33.58]
[1747915082153,24.25038251,178.55,178.53,33.58]
[1747915082319,4.18776141,178.54,178.53,33.58]
[1747915083033,18.64964886,178.54,178.52,38.04]
[1747915083234,18.64964886,178.54,178.52,71.62]
[1747915083908,32.68630956,178.54,178.52,38.04]
[1747915084115,18.64964886,178.52,178.47,38.04]
[1747915084314,18.64964886,178.49,178.48,0.07]
[1747915085124,38.28886432,178.49,178.48,0.07]
[1747915086250,42.47863567,178.49,178.48,0.07]
[1747915087041,38.28886432,178.49,178.48,0.07]
[1747915088222,56.48611767,178.49,178.41,33.58]
[1747915088423,14.0366607,178.43,178.41,33.58]
[1747915089036,18.64964886,178.47,178.41,33.58]
[1747915089247,5.60443871,178.43,178.41,33.58]
[1747915096355,5.60443871,178.43,178.4,71.64]
[1747915098039,18.64964886,178.42,178.4,71.64]
[1747915099226,5.60506698,178.41,178.4,71.64]
[1747915100336,5.60443871,178.43,178.4,71.64]
[1747915100722,5.60443871,178.43,178.39,33.6]
[1747915103133,5.60443871,178.43,178.4,0.07]
[1747915103751,32.68630956,178.41,178.4,0.07]
[1747915105764,18.64964886,178.4,178.35,33.6]
[1747915105967,14.0366607,178.39,178.35,33.6]
[1747915106157,14.0366607,178.39,178.37,0.07]
[1747915106333,32.68630956,178.38,178.37,0.07]
[1747915106531,34.29050956,178.38,178.37,0.07]
[1747915107657,39.8965192,178.38,178.37,0.07]
[1747915108175,18.64964886,178.34,178.27,33.6]
[1747915108335,14.0366607,178.31,178.27,33.6]
[1747915108734,41.83740033,178.34,178.27,33.6]
[1747915108936,14.0366607,178.31,178.27,33.6]
[1747915109844,5.60852495,178.3,178.27,33.6]
[1747915111234,5.60852495,178.3,178.25,97.24]
[1747915112256,5.60852495,178.3,178.25,63.62]
[1747915112459,32.68630956,178.29,178.25,37.62]
[1747915112760,14.0366607,178.26,178.25,37.62]
[1747915112961,18.64964886,178.29,178.21,243.3]
[1747915112962,14.0366607,178.27,178.21,243.3]
[1747915113264,14.0366607,178.26,178.21,243.3]
[1747915114061,5.61009817,178.25,178.21,243.3]
[1747915114560,18.64964886,178.24,178.2,37.62]
[1747915114747,14.0366607,178.22,178.15,43.8495]
[1747915115059,14.0366607,178.21,178.15,71.24]
[1747915115359,14.0366607,178.19,178.15,37.62]
[1747915115527,1.5992,178.24,178.15,37.62]
[1747915115528,14.0366607,178.18,178.15,37.62]
[1747915115733,14.0366607,178.17,178.15,37.62]
[1747915116033,5.61324726,178.15,178.09,281.02]
[1747915116231,14.0366607,178.13,178.09,71.26]
[1747915116451,14.0366607,178.12,178.09,37.64]
[1747915116653,14.0366607,178.11,178.09,37.64]
[1747915117336,14.0366607,178.1,178.05,33.62]
[1747915117531,14.0366607,178.08,178.03,37.64]
[1747915117754,14.0366607,178.08,178.03,71.26]
[1747915118130,5.61576907,178.07,178.03,71.26]
[1747915119057,14.0366607,178.1,178.03,71.26]
[1747915119359,5.61513841,178.09,178.03,71.26]
[1747915120037,5.61482313,178.1,178.03,71.26]
[1747915120857,5.61482313,178.1,178.03,76.87695151]
[1747915121040,5.61482313,178.1,178.04,26.0]
[1747915122034,5.61455934,178.11,178.04,31.61647322]
[1747915122241,5.61423411,178.12,178.04,31.61647322]
[1747915123461,5.61394892,178.13,178.04,31.61647322]
[1747915124464,18.64964886,178.13,178.04,31.61647322]
[1747915125765,5.61419267,178.12,178.04,31.61647322]
[1747915125968,5.61293219,178.16,178.04,31.61647322]
[1747915126176,18.64964886,178.15,178.04,31.61647322]
[1747915127155,5.61356236,178.14,178.04,31.61647322]
[1747915127554,18.64964886,178.13,178.04,31.61647322]
[1747915128574,5.61419267,178.12,178.04,31.61647322]
[1747915133574,5.61356236,178.14,178.04,31.61647322]
[1747915135266,18.64964886,178.16,178.04,45.65826158]
[1747915135562,5.61261716,178.17,178.08,26.0]
[1747915135864,5.61261716,178.17,178.09,71.78]
[1747915136385,5.61261716,178.17,178.09,77.39507145]
[1747915137290,18.64964886,178.16,178.09,71.78]
[1747915137580,14.0366607,178.15,178.09,71.78]
[1747915138162,32.68630956,178.16,178.09,71.78]
[1747915138383,18.64964886,178.14,178.09,71.78]
[1747915139583,32.68630956,178.14,178.09,71.78]
[1747915140172,18.64964886,178.14,178.09,71.78]
[1747915140581,18.64964886,178.12,178.09,38.12]
[1747915142883,5.61450788,178.11,178.09,38.12]
[1747915144793,18.64964886,178.1,178.09,38.12]
[1747915144962,32.68630956,178.1,178.09,38.12]
[1747915145288,32.68630956,178.1,178.06,33.66]
[1747915145458,14.0366607,178.09,178.04,71.78]
[1747915145661,18.64964886,178.08,178.04,71.78]
[1747915145978,18.64964886,178.08,178.04,38.12]
[1747915146562,32.68630956,178.1,178.04,38.12]
[1747915146762,18.64964886,178.08,178.04,38.12]
[1747915147173,14.0366607,178.08,178.04,38.12]
[1747915147484,32.68630956,178.08,178.04,38.12]
[1747915148366,18.64964886,178.06,178.04,38.12]
[1747915149773,5.61576907,178.07,178.04,38.12]
[1747915150090,5.61482313,178.1,178.04,38.12]
[1747915150383,24.26415674,178.11,178.04,38.12]
[1747915152498,5.61450788,178.11,178.04,43.73666533]
[1747915152800,5.61450788,178.11,178.04,49.86886533]
[1747915153805,5.6138775,178.13,178.04,49.86886533]
[1747915154104,5.6138775,178.13,178.04,75.86886533]
[1747915155180,19.64857126,178.13,178.04,70.2522]
[1747915155489,19.64857126,178.13,178.04,64.12]
[1747915155490,18.64964886,178.12,178.04,64.12]
[1747915155689,5.61450788,178.11,178.04,64.12]
[1747915160499,19.6507776,178.11,178.04,64.12]
[1747915163023,18.64964886,178.1,178.04,38.12]
[1747915163185,18.64964886,178.1,178.05,33.66]
[1747915164587,18.64964886,178.07,178.04,38.12]
[1747915164808,14.0366607,178.07,178.04,38.12]
[1747915164996,24.26604874,178.05,178.04,38.12]
[1747915165193,24.26604874,178.05,178.01,33.66]
[1747915165391,24.26604874,178.05,177.99,37.78]
[1747915165392,18.64964886,178.03,177.99,37.78]
[1747915165699,30.0,178.02,177.99,37.78]
[1747915166789,18.64964886,178.01,177.99,37.78]
[1747915167223,5.61797752,178.0,177.99,37.78]
[1747915168527,24.26762638,178.0,177.94,37.78]
[1747915168683,38.3125702,178.0,177.95,33.66]
[1747915168883,19.66292134,178.0,177.95,33.66]
[1747915169511,5.61797752,178.0,177.95,33.66]
[1747915170217,5.61734636,178.02,177.95,33.66]
[1747915170515,5.61734636,178.02,177.95,39.27953241]
[1747915171092,5.61703083,178.03,177.95,39.27953241]
[1747915174724,5.61703083,178.03,177.95,33.66]
[1747915174919,18.64964886,178.02,177.94,37.78]
[1747915175107,18.64964886,178.02,177.96,33.68]
[1747915176320,5.61766192,178.01,177.96,33.68]
[1747915177306,19.66181674,178.01,177.94,37.78]
[1747915177505,19.66181674,178.01,177.95,33.68]
[1747915181500,19.66181674,178.01,177.96,3.0621]
[1747915182110,19.6585037,178.04,177.96,3.0621]
[1747915186023,18.64964886,178.03,177.96,3.0621]
[1747915187634,5.61734636,178.02,177.96,3.0621]
[1747915188717,19.66071227,178.02,177.96,3.0621]
[1747915193131,19.66071227,178.02,177.97,37.62]
[1747915193518,5.61797752,178.0,177.97,37.62]
[1747915195133,5.61671534,178.04,177.97,37.62]
[1747915195642,14.04160546,178.05,177.98,26.0]
[1747915197716,19.65800534,178.05,177.98,26.0]
[1747915199347,19.65800534,178.05,177.97,37.62]
[1747915199348,32.68630956,178.04,177.97,37.62]
[1747915199531,32.68630956,178.04,177.98,33.68]
[1747915199733,19.65960792,178.03,177.98,33.68]
[1747915200334,18.64964886,178.02,177.97,37.62]
[1747915200735,19.65960792,178.03,177.97,37.62]
[1747915201854,14.04257709,178.03,177.97,37.62]
[1747915202763,5.61671534,178.04,178.0,26.0]
[1747915202918,5.61671534,178.04,178.01,33.68]
[1747915203860,18.64964886,178.05,177.96,3.0621]
[1747915204155,18.64964886,178.05,178.0,71.3]
[1747915206055,18.64964886,178.03,178.0,71.3]
[1747915208260,5.61734636,178.02,178.0,71.3]
[1747915210451,5.61639988,178.05,178.0,71.3]
[1747915211244,19.65739959,178.05,178.0,71.3]
[1747915211827,5.61639988,178.05,178.0,71.3]
[1747915212023,4.20056336,178.04,178.0,71.3]
[1747915212431,9.81759059,178.04,178.0,71.3]
[1747915212635,4.20056336,178.04,178.0,71.3]
[1747915212834,4.20056336,178.03,178.0,71.3]
[1747915213665,5.61513841,178.09,178.03,26.0]
[1747915213965,5.61513841,178.09,178.04,33.68]
[1747915214342,5.61576907,178.07,178.04,33.68]
[1747915216476,14.03784603,178.09,178.04,33.68]
[1747915217050,5.61450788,178.11,178.04,33.68]
[1747915218036,4.1920428,178.1,178.04,33.68]
[1747915218564,5.61513841,178.09,178.04,33.68]
[1747915220467,5.61450788,178.11,178.04,33.68]
[1747915221071,19.6507776,178.11,178.04,33.68]
[1747915221268,36.87431003,178.1,178.03,26.0]
[1747915221436,32.68630956,178.08,178.04,33.68]
[1747915221630,14.0366607,178.08,178.04,33.68]
[1747915221830,20.3718607,178.09,178.04,33.68]
[1747915222056,22.83764933,178.08,178.04,33.68]
[1747915222574,5.61576907,178.07,178.04,33.68]
[1747915222874,18.64964886,178.06,178.04,33.68]
[1747915223281,18.64964886,178.06,178.0,63.62]
[1747915223282,18.64964886,178.06,178.01,71.3]
[1747915224547,5.61639988,178.05,178.01,71.3]
[1747915230589,19.65519176,178.07,178.01,71.3]
[1747915230988,4.18958816,178.06,178.01,71.3]
[1747915231354,4.18958816,178.06,178.04,26.0]
[1747915231560,4.18958816,178.06,178.05,33.68]
[1747915232260,5.61450788,178.11,178.05,33.68]
[1747915232678,19.6507776,178.11,178.05,33.68]
[1747915233385,4.18888331,178.1,178.05,33.68]
[1747915233690,5.61513841,178.09,178.05,33.68]
[1747915234874,5.61419267,178.12,178.05,33.68]
[1747915235876,19.64774755,178.14,178.05,33.68]
[1747915236096,19.64774755,178.14,178.05,40.84058874]
[1747915236965,4.18870719,178.13,178.05,40.84058874]
[1747915237199,5.61419267,178.12,178.05,40.84058874]
[1747915237568,19.64967436,178.12,178.05,35.2245]
[1747915237794,19.64967436,178.12,178.06,71.28]
[1747915238599,5.61419267,178.12,178.06,71.28]
[1747915239288,19.64746827,178.14,178.06,71.28]
[1747915239766,4.18755558,178.13,178.06,71.28]
[1747915240883,4.18755558,178.12,178.06,71.28]
[1747915241173,4.18755558,178.12,178.06,76.89606675]
[1747915241489,5.6143674,178.12,178.06,71.28]
[1747915241876,19.64984909,178.12,178.06,71.28]
[1747915243093,4.18760377,178.11,178.06,71.28]
[1747915243391,9.80221289,178.11,178.06,71.28]
[1747915243769,5.61460912,178.11,178.06,71.28]
[1747915245411,32.68630956,178.16,178.06,71.28]
[1747915245412,61.74985336,178.15,178.06,71.28]
[1747915245774,4.18766666,178.14,178.06,71.28]
[1747915246588,4.18766666,178.14,178.07,26.0]
[1747915246906,4.18766666,178.13,178.07,26.0]
[1747915247510,5.61419267,178.12,178.07,26.0]
[1747915247689,9.80185933,178.12,178.07,26.0]
[1747915248088,9.80185933,178.12,178.09,26.0]
[1747915248282,4.18766666,178.12,178.1,33.66]
[1747915248486,5.6139612,178.13,178.1,33.66]
[1747915249602,14.03257081,178.16,178.1,33.66]
[1747915249992,4.18629207,178.15,178.1,33.66]
[1747915251122,4.18629207,178.14,178.1,33.66]
[1747915251508,5.6138775,178.13,178.1,33.66]
[1747915252801,5.61324726,178.15,178.1,33.66]
[1747915253610,14.03257081,178.16,178.1,33.66]
[1747915254040,14.03257081,178.16,178.11,71.24]
[1747915254197,4.18646683,178.15,178.11,71.24]
[1747915255028,4.18646683,178.14,178.11,71.24]
[1747915255525,5.6138775,178.13,178.11,71.24]
[1747915255886,5.6138775,178.13,178.11,37.58]
[1747915256917,14.03257081,178.16,178.11,37.58]
[1747915256918,5.61324726,178.15,178.11,37.58]
[1747915257303,5.61324726,178.15,178.11,63.58]
[1747915257692,19.64241044,178.19,178.11,63.58]
[1747915258711,4.18426902,178.18,178.11,63.58]
[1747915259017,4.18426902,178.18,178.12,33.66]